[Event "Titled Tuesday Blitz July 25 Early 2023"]
[White "Svane, Rasmus"]
[Black "Kuznetsov, Felix"]
[WhiteFideId "4657101"]
[BlackFideId "34147990"]
[WhiteElo "2966"]
[BlackElo "2714"]
[Result "1/2-1/2"]
[Round "6"]
[TimeControl "180+2"]
[Date "2023.07.25"]
[WhiteClock "0:00:08"]
[BlackClock "0:00:33"]
[Board "38"]

1. Nf3 {[%clk 0:03:00]}  Nf6 {[%clk 0:03:00]} 2. g3 {[%clk 0:02:59]}  b5 {[%clk 0:02:53]} 3. Bg2 {[%clk 0:02:56]}  Bb7 {[%clk 0:02:53]} 4. d4 {[%clk 0:02:57]}  e6 {[%clk 0:02:54]} 5. Bg5 {[%clk 0:02:57]}  Be7 {[%clk 0:02:54]} 6. Qd3 {[%clk 0:02:57]}  a6 {[%clk 0:02:53]} 7. O-O {[%clk 0:02:54]}  Be4 {[%clk 0:02:33]} 8. Qd1 {[%clk 0:02:48]}  d6 {[%clk 0:02:26]} 9. Nbd2 {[%clk 0:02:47]}  Bb7 {[%clk 0:02:25]} 10. c3 {[%clk 0:02:47]}  Nbd7 {[%clk 0:02:25]} 11. a4 {[%clk 0:02:43]}  c5 {[%clk 0:02:12]} 12. axb5 {[%clk 0:02:31]}  axb5 {[%clk 0:02:12]} 13. Qb3 {[%clk 0:02:29]}  Qb6 {[%clk 0:02:09]} 14. Rxa8+ {[%clk 0:02:16]}  Bxa8 {[%clk 0:02:10]} 15. Ra1 {[%clk 0:02:16]}  O-O {[%clk 0:02:10]} 16. e3 {[%clk 0:02:15]}  Bd5 {[%clk 0:02:04]} 17. Qc2 {[%clk 0:02:15]}  Ra8 {[%clk 0:02:01]} 18. Rxa8+ {[%clk 0:02:12]}  Bxa8 {[%clk 0:02:02]} 19. Bxf6 {[%clk 0:02:12]}  Nxf6 {[%clk 0:01:59]} 20. Ne1 {[%clk 0:02:08]}  Bxg2 {[%clk 0:01:57]} 21. Kxg2 {[%clk 0:02:09]}  h5 {[%clk 0:01:48]} 22. h3 {[%clk 0:02:07]}  d5 {[%clk 0:01:47]} 23. Nd3 {[%clk 0:02:06]}  c4 {[%clk 0:01:46]} 24. Ne5 {[%clk 0:02:05]}  b4 {[%clk 0:01:44]} 25. Ndf3 {[%clk 0:01:28]}  bxc3 {[%clk 0:01:41]} 26. bxc3 {[%clk 0:01:28]}  Qb3 {[%clk 0:01:23]} 27. Qxb3 {[%clk 0:00:59]}  cxb3 {[%clk 0:01:24]} 28. Nd2 {[%clk 0:01:00]}  Ne4 {[%clk 0:01:19]} 29. Nxe4 {[%clk 0:00:37]}  dxe4 {[%clk 0:01:20]} 30. Nc4 {[%clk 0:00:38]}  Bd8 {[%clk 0:01:10]} 31. Kf1 {[%clk 0:00:36]}  Ba5 {[%clk 0:01:10]} 32. Nd2 {[%clk 0:00:37]}  Bxc3 {[%clk 0:01:06]} 33. Nxb3 {[%clk 0:00:37]}  f5 {[%clk 0:01:05]} 34. Nc5 {[%clk 0:00:33]}  Kf7 {[%clk 0:01:05]} 35. Nd7 {[%clk 0:00:29]}  Ba5 {[%clk 0:01:02]} 36. Ne5+ {[%clk 0:00:29]}  Kf6 {[%clk 0:01:02]} 37. Ke2 {[%clk 0:00:25]}  g5 {[%clk 0:01:01]} 38. g4 {[%clk 0:00:23]}  hxg4 {[%clk 0:00:52]} 39. hxg4 {[%clk 0:00:24]}  Bc7 {[%clk 0:00:53]} 40. Nd7+ {[%clk 0:00:24]}  Ke7 {[%clk 0:00:52]} 41. Nc5 {[%clk 0:00:24]}  Kf6 {[%clk 0:00:49]} 42. Kf1 {[%clk 0:00:23]}  Bd6 {[%clk 0:00:47]} 43. Nb7 {[%clk 0:00:21]}  Bb8 {[%clk 0:00:47]} 44. Kg2 {[%clk 0:00:21]}  Bc7 {[%clk 0:00:40]} 45. Nc5 {[%clk 0:00:21]}  Bd6 {[%clk 0:00:40]} 46. Nd7+ {[%clk 0:00:21]}  Ke7 {[%clk 0:00:40]} 47. Nb6 {[%clk 0:00:22]}  Kf6 {[%clk 0:00:39]} 48. Nc4 {[%clk 0:00:22]}  Bc7 {[%clk 0:00:39]} 49. Nd2 {[%clk 0:00:21]}  Bd6 {[%clk 0:00:39]} 50. Nf1 {[%clk 0:00:18]}  Bc7 {[%clk 0:00:39]} 51. Nd2 {[%clk 0:00:16]}  Bd6 {[%clk 0:00:39]} 52. Nc4 {[%clk 0:00:15]}  Bc7 {[%clk 0:00:40]} 53. f3 {[%clk 0:00:13]}  exf3+ {[%clk 0:00:39]} 54. Kxf3 {[%clk 0:00:14]}  Bb8 {[%clk 0:00:36]} 55. Nb6 {[%clk 0:00:13]}  Bc7 {[%clk 0:00:37]} 56. Nd7+ {[%clk 0:00:14]}  Ke7 {[%clk 0:00:37]} 57. Nc5 {[%clk 0:00:14]}  Kf6 {[%clk 0:00:37]} 58. e4 {[%clk 0:00:11]}  fxe4+ {[%clk 0:00:33]} 59. Nxe4+ {[%clk 0:00:12]}  Kg6 {[%clk 0:00:33]} 60. Ke2 {[%clk 0:00:12]}  Bf4 {[%clk 0:00:33]} 61. Kd3 {[%clk 0:00:12]}  Kf7 {[%clk 0:00:33]} 62. Kc4 {[%clk 0:00:12]}  Ke7 {[%clk 0:00:34]} 63. Nc3 {[%clk 0:00:09]}  Be3 {[%clk 0:00:33]} 64. Ne2 {[%clk 0:00:10]}  Kf6 {[%clk 0:00:33]} 65. Ng3 {[%clk 0:00:10]}  Bf4 {[%clk 0:00:32]} 66. Ne4+ {[%clk 0:00:10]}  Ke7 {[%clk 0:00:32]} 67. Kc5 {[%clk 0:00:10]}  Be3 {[%clk 0:00:32]} 68. Kc4 {[%clk 0:00:08]}  Bf4 {[%clk 0:00:33]} 1/2-1/2


[Site "https://www.chess.com"]

[Event "Titled Tuesday Blitz July 25 Early 2023"]
[White "Maghsoodloo, Parham"]
[Black "Weetik, Vjacheslav"]
[WhiteFideId "12539929"]
[BlackFideId "4153472"]
[WhiteElo "2928"]
[BlackElo "2687"]
[Result "1-0"]
[Round "6"]
[TimeControl "180+2"]
[Date "2023.07.25"]
[WhiteClock "0:00:16"]
[BlackClock "0:00:00"]
[Board "39"]

1. d4 {[%clk 0:03:00]}  Nf6 {[%clk 0:03:00]} 2. c4 {[%clk 0:03:00]}  e6 {[%clk 0:03:00]} 3. Nf3 {[%clk 0:03:00]}  b6 {[%clk 0:03:00]} 4. Nc3 {[%clk 0:02:57]}  Bb7 {[%clk 0:02:58]} 5. a3 {[%clk 0:02:57]}  d5 {[%clk 0:02:56]} 6. Bg5 {[%clk 0:02:57]}  Be7 {[%clk 0:02:51]} 7. Qc2 {[%clk 0:02:51]}  Nbd7 {[%clk 0:02:41]} 8. Rd1 {[%clk 0:02:51]}  O-O {[%clk 0:02:29]} 9. cxd5 {[%clk 0:02:43]}  Nxd5 {[%clk 0:02:03]} 10. Bxe7 {[%clk 0:02:34]}  Qxe7 {[%clk 0:02:03]} 11. Nxd5 {[%clk 0:02:34]}  Bxd5 {[%clk 0:02:03]} 12. e4 {[%clk 0:02:33]}  Bb7 {[%clk 0:02:00]} 13. Bb5 {[%clk 0:02:32]}  c5 {[%clk 0:01:28]} 14. Bxd7 {[%clk 0:02:06]}  Qxd7 {[%clk 0:01:28]} 15. dxc5 {[%clk 0:02:05]}  Qb5 {[%clk 0:01:21]} 16. Nd4 {[%clk 0:01:45]}  Qa5+ {[%clk 0:00:49]} 17. Rd2 {[%clk 0:01:37]}  Qxc5 {[%clk 0:00:28]} 18. f3 {[%clk 0:01:33]}  Qg5 {[%clk 0:00:14]} 19. O-O {[%clk 0:01:19]}  Rac8 {[%clk 0:00:14]} 20. Qd1 {[%clk 0:01:14]}  Rfd8 {[%clk 0:00:14]} 21. Rff2 {[%clk 0:01:10]}  Qe3 {[%clk 0:00:12]} 22. Nc2 {[%clk 0:01:08]}  Qg5 {[%clk 0:00:05]} 23. Rxd8+ {[%clk 0:01:04]}  Rxd8 {[%clk 0:00:05]} 24. Qe1 {[%clk 0:01:05]}  Ba6 {[%clk 0:00:05]} 25. Nb4 {[%clk 0:00:56]}  Bb5 {[%clk 0:00:04]} 26. Na2 {[%clk 0:00:55]}  Qc5 {[%clk 0:00:03]} 27. Nc3 {[%clk 0:00:55]}  Bc4 {[%clk 0:00:04]} 28. h3 {[%clk 0:00:55]}  h6 {[%clk 0:00:02]} 29. Kh2 {[%clk 0:00:55]}  Qe5+ {[%clk 0:00:03]} 30. f4 {[%clk 0:00:54]}  Qd4 {[%clk 0:00:03]} 31. e5 {[%clk 0:00:51]}  b5 {[%clk 0:00:03]} 32. Ne4 {[%clk 0:00:51]}  Qd1 {[%clk 0:00:03]} 33. Qe3 {[%clk 0:00:36]}  Qb1 {[%clk 0:00:02]} 34. Nd6 {[%clk 0:00:34]}  a6 {[%clk 0:00:01]} 35. Rd2 {[%clk 0:00:28]}  Bd5 {[%clk 0:00:02]} 36. f5 {[%clk 0:00:28]}  Qc1 {[%clk 0:00:01]} 37. f6 {[%clk 0:00:21]}  Qc7 {[%clk 0:00:01]} 38. fxg7 {[%clk 0:00:16]}  Kxg7 {[%clk 0:00:02]} 39. Qf4 {[%clk 0:00:16]}  Qe7 {[%clk 0:00:01]} 40. Rd3 {[%clk 0:00:15]}  Rg8 {[%clk 0:00:01]} 41. Rg3+ {[%clk 0:00:15]}  Kh7 {[%clk 0:00:02]} 42. Rxg8 {[%clk 0:00:15]}  Kxg8 {[%clk 0:00:02]} 43. Qxh6 {[%clk 0:00:16]}  Qc7 {[%clk 0:00:01]} 44. Qg5+ {[%clk 0:00:16]}  Kf8 {[%clk 0:00:02]} 45. Qf6 {[%clk 0:00:16]}  Kg8 {[%clk 0:00:01]} 46. h4 {[%clk 0:00:16]}  Bb3 {[%clk 0:00:00]} 47. h5 {[%clk 0:00:16]} 1-0


[Site "https://www.chess.com"]

[Event "Titled Tuesday Blitz July 25 Early 2023"]
[White "Mohammad Fahad, Rahman"]
[Black "Svane, Frederik"]
[WhiteFideId "10207791"]
[BlackFideId "12923044"]
[WhiteElo "2680"]
[BlackElo "2925"]
[Result "0-1"]
[Round "6"]
[TimeControl "180+2"]
[Date "2023.07.25"]
[WhiteClock "0:00:04"]
[BlackClock "0:00:13"]
[Board "40"]

1. Nf3 {[%clk 0:03:00]}  c6 {[%clk 0:03:00]} 2. d4 {[%clk 0:03:00]}  Nf6 {[%clk 0:02:59]} 3. c4 {[%clk 0:03:00]}  d5 {[%clk 0:03:00]} 4. Nc3 {[%clk 0:02:58]}  dxc4 {[%clk 0:02:58]} 5. a4 {[%clk 0:02:58]}  Bf5 {[%clk 0:02:55]} 6. Ne5 {[%clk 0:02:58]}  e6 {[%clk 0:02:46]} 7. f3 {[%clk 0:02:33]}  Bb4 {[%clk 0:02:45]} 8. h4 {[%clk 0:02:18]}  c5 {[%clk 0:02:22]} 9. dxc5 {[%clk 0:01:54]}  Qa5 {[%clk 0:02:22]} 10. Qd4 {[%clk 0:01:39]}  O-O {[%clk 0:01:37]} 11. e4 {[%clk 0:01:25]}  Rd8 {[%clk 0:01:06]} 12. Qxc4 {[%clk 0:01:18]}  Bxe4 {[%clk 0:00:57]} 13. fxe4 {[%clk 0:00:51]}  Nxe4 {[%clk 0:00:57]} 14. Rh3 {[%clk 0:00:52]}  Nxc5 {[%clk 0:00:51]} 15. Be3 {[%clk 0:00:35]}  Nba6 {[%clk 0:00:51]} 16. Be2 {[%clk 0:00:25]}  Nxa4 {[%clk 0:00:47]} 17. Rxa4 {[%clk 0:00:20]}  Qxa4 {[%clk 0:00:43]} 18. Kf2 {[%clk 0:00:15]}  Qa5 {[%clk 0:00:42]} 19. Nb5 {[%clk 0:00:14]}  Bd2 {[%clk 0:00:39]} 20. Bd4 {[%clk 0:00:11]}  Rac8 {[%clk 0:00:37]} 21. Qd3 {[%clk 0:00:10]}  f6 {[%clk 0:00:30]} 22. Nc4 {[%clk 0:00:09]}  Qxb5 {[%clk 0:00:27]} 23. Nxd2 {[%clk 0:00:10]}  Qb4 {[%clk 0:00:21]} 24. Bg4 {[%clk 0:00:08]}  Rxd4 {[%clk 0:00:16]} 25. Bxe6+ {[%clk 0:00:08]}  Kh8 {[%clk 0:00:16]} 26. Bxc8 {[%clk 0:00:06]}  Rxd3 {[%clk 0:00:16]} 27. Rxd3 {[%clk 0:00:07]}  Qc5+ {[%clk 0:00:17]} 28. Re3 {[%clk 0:00:04]}  Qxc8 {[%clk 0:00:17]} 29. Ne4 {[%clk 0:00:05]}  h6 {[%clk 0:00:13]} 30. Nd6 {[%clk 0:00:04]}  Qc2+ {[%clk 0:00:13]} 31. Kf3 {[%clk 0:00:05]}  Qc6+ {[%clk 0:00:13]} 32. Ne4 {[%clk 0:00:04]}  f5 {[%clk 0:00:13]} 0-1


[Site "https://www.chess.com"]

[Event "Titled Tuesday Blitz July 25 Early 2023"]
[White "brm72"]
[Black "Kushagra Mohan"]
[BlackFideId "25033638"]
[WhiteElo "2665"]
[BlackElo "2860"]
[Result "1/2-1/2"]
[Round "6"]
[TimeControl "180+2"]
[Date "2023.07.25"]
[WhiteClock "0:00:06"]
[BlackClock "0:00:14"]
[Board "41"]

1. e4 {[%clk 0:03:00]}  e5 {[%clk 0:02:59]} 2. Nf3 {[%clk 0:03:01]}  Nc6 {[%clk 0:03:00]} 3. d4 {[%clk 0:03:01]}  exd4 {[%clk 0:03:00]} 4. Nxd4 {[%clk 0:03:02]}  Nf6 {[%clk 0:03:00]} 5. Nxc6 {[%clk 0:03:02]}  bxc6 {[%clk 0:03:01]} 6. e5 {[%clk 0:03:02]}  Qe7 {[%clk 0:03:02]} 7. Qe2 {[%clk 0:03:03]}  Nd5 {[%clk 0:03:02]} 8. h4 {[%clk 0:03:03]}  Bb7 {[%clk 0:03:01]} 9. c4 {[%clk 0:02:59]}  Nb6 {[%clk 0:03:00]} 10. Rh3 {[%clk 0:02:57]}  Qe6 {[%clk 0:02:59]} 11. Nc3 {[%clk 0:02:30]}  O-O-O {[%clk 0:02:58]} 12. b3 {[%clk 0:02:30]}  Bb4 {[%clk 0:02:53]} 13. Bb2 {[%clk 0:02:30]}  d5 {[%clk 0:02:52]} 14. exd6 {[%clk 0:02:27]}  Qxd6 {[%clk 0:02:39]} 15. Rd3 {[%clk 0:02:21]}  Qh6 {[%clk 0:02:25]} 16. Rxd8+ {[%clk 0:02:17]}  Rxd8 {[%clk 0:02:26]} 17. g3 {[%clk 0:02:16]}  Kb8 {[%clk 0:02:25]} 18. Rd1 {[%clk 0:02:15]}  Rf8 {[%clk 0:02:20]} 19. Bg2 {[%clk 0:02:11]}  Qf6 {[%clk 0:02:18]} 20. Rd3 {[%clk 0:02:06]}  c5 {[%clk 0:01:27]} 21. Bxb7 {[%clk 0:02:00]}  Kxb7 {[%clk 0:01:28]} 22. a3 {[%clk 0:01:54]}  Ba5 {[%clk 0:01:28]} 23. Kf1 {[%clk 0:01:44]}  Bxc3 {[%clk 0:01:24]} 24. Bxc3 {[%clk 0:01:42]}  Qc6 {[%clk 0:01:25]} 25. Qf3 {[%clk 0:01:35]}  f6 {[%clk 0:01:25]} 26. h5 {[%clk 0:01:28]}  h6 {[%clk 0:01:25]} 27. g4 {[%clk 0:01:26]}  Re8 {[%clk 0:01:23]} 28. Qxc6+ {[%clk 0:01:25]}  Kxc6 {[%clk 0:01:24]} 29. f3 {[%clk 0:01:24]}  Nd7 {[%clk 0:01:23]} 30. Kf2 {[%clk 0:01:19]}  Re6 {[%clk 0:01:11]} 31. Re3 {[%clk 0:01:15]}  Ne5 {[%clk 0:01:03]} 32. Bxe5 {[%clk 0:01:15]}  fxe5 {[%clk 0:01:04]} 33. f4 {[%clk 0:01:02]}  Kd6 {[%clk 0:01:01]} 34. Rd3+ {[%clk 0:00:59]}  Kc6 {[%clk 0:01:00]} 35. Re3 {[%clk 0:00:58]}  Kd6 {[%clk 0:01:00]} 36. Rd3+ {[%clk 0:00:57]}  Kc6 {[%clk 0:01:00]} 37. Ke3 {[%clk 0:00:34]}  exf4+ {[%clk 0:00:55]} 38. Kxf4 {[%clk 0:00:34]}  a5 {[%clk 0:00:54]} 39. a4 {[%clk 0:00:30]}  Rf6+ {[%clk 0:00:50]} 40. Ke5 {[%clk 0:00:29]}  Rf1 {[%clk 0:00:47]} 41. Re3 {[%clk 0:00:25]}  Rf6 {[%clk 0:00:44]} 42. Re4 {[%clk 0:00:24]}  Rf3 {[%clk 0:00:44]} 43. Ke6 {[%clk 0:00:19]}  Rf6+ {[%clk 0:00:39]} 44. Ke7 {[%clk 0:00:18]}  Kb7 {[%clk 0:00:29]} 45. Re5 {[%clk 0:00:14]}  Rf4 {[%clk 0:00:27]} 46. Rxc5 {[%clk 0:00:11]}  Rxg4 {[%clk 0:00:25]} 47. Rxa5 {[%clk 0:00:11]}  Rg5 {[%clk 0:00:24]} 48. Rb5+ {[%clk 0:00:11]}  Ka7 {[%clk 0:00:24]} 49. Kf7 {[%clk 0:00:10]}  c6 {[%clk 0:00:18]} 50. Rxg5 {[%clk 0:00:05]}  hxg5 {[%clk 0:00:19]} 51. Kxg7 {[%clk 0:00:06]}  g4 {[%clk 0:00:20]} 52. h6 {[%clk 0:00:07]}  g3 {[%clk 0:00:21]} 53. h7 {[%clk 0:00:07]}  g2 {[%clk 0:00:22]} 54. h8=Q {[%clk 0:00:07]}  g1=Q+ {[%clk 0:00:23]} 55. Kf7 {[%clk 0:00:05]}  Qf2+ {[%clk 0:00:21]} 56. Qf6 {[%clk 0:00:06]}  Qg2 {[%clk 0:00:20]} 57. Qe7+ {[%clk 0:00:05]}  Kb8 {[%clk 0:00:19]} 58. Qb4+ {[%clk 0:00:05]}  Kc7 {[%clk 0:00:19]} 59. Ke6 {[%clk 0:00:05]}  Qe4+ {[%clk 0:00:18]} 60. Kf6 {[%clk 0:00:05]}  Qf4+ {[%clk 0:00:19]} 61. Kg7 {[%clk 0:00:05]}  Qg5+ {[%clk 0:00:19]} 62. Kf7 {[%clk 0:00:05]}  Qf5+ {[%clk 0:00:18]} 63. Ke8 {[%clk 0:00:05]}  Qg6+ {[%clk 0:00:18]} 64. Kf8 {[%clk 0:00:05]}  Qf6+ {[%clk 0:00:17]} 65. Kg8 {[%clk 0:00:05]}  Qg6+ {[%clk 0:00:17]} 66. Kf8 {[%clk 0:00:05]}  Qf6+ {[%clk 0:00:17]} 67. Ke8 {[%clk 0:00:06]}  Qh8+ {[%clk 0:00:16]} 68. Ke7 {[%clk 0:00:06]}  Qe5+ {[%clk 0:00:16]} 69. Kf7 {[%clk 0:00:06]}  Qf5+ {[%clk 0:00:17]} 70. Ke8 {[%clk 0:00:06]}  Qg6+ {[%clk 0:00:14]} 71. Kf8 {[%clk 0:00:06]} 1/2-1/2


[Site "https://www.chess.com"]

[Event "Titled Tuesday Blitz July 25 Early 2023"]
[White "Salinas Herrera, Pablo"]
[Black "Arat, Ufuk Sezen"]
[WhiteFideId "3407128"]
[BlackFideId "6309089"]
[WhiteElo "2845"]
[BlackElo "2627"]
[Result "1-0"]
[Round "6"]
[TimeControl "180+2"]
[Date "2023.07.25"]
[WhiteClock "0:01:06"]
[BlackClock "0:00:17"]
[Board "42"]

1. d4 {[%clk 0:03:00]}  Nf6 {[%clk 0:02:57]} 2. Nf3 {[%clk 0:03:01]}  e6 {[%clk 0:02:56]} 3. Bf4 {[%clk 0:03:01]}  d5 {[%clk 0:02:56]} 4. e3 {[%clk 0:03:02]}  Bd6 {[%clk 0:02:57]} 5. Nbd2 {[%clk 0:03:02]}  Bxf4 {[%clk 0:02:57]} 6. exf4 {[%clk 0:03:02]}  c5 {[%clk 0:02:58]} 7. dxc5 {[%clk 0:03:03]}  Qc7 {[%clk 0:02:55]} 8. g3 {[%clk 0:03:03]}  Qxc5 {[%clk 0:02:55]} 9. Bd3 {[%clk 0:03:03]}  Qc7 {[%clk 0:02:55]} 10. O-O {[%clk 0:03:03]}  Nc6 {[%clk 0:02:56]} 11. c3 {[%clk 0:03:03]}  O-O {[%clk 0:02:55]} 12. Re1 {[%clk 0:03:03]}  b6 {[%clk 0:02:55]} 13. Qe2 {[%clk 0:03:04]}  Bb7 {[%clk 0:02:54]} 14. Rad1 {[%clk 0:03:04]}  Rae8 {[%clk 0:02:54]} 15. Bb1 {[%clk 0:03:04]}  Ne7 {[%clk 0:02:47]} 16. Ne5 {[%clk 0:03:02]}  Ng6 {[%clk 0:02:43]} 17. Ndf3 {[%clk 0:03:01]}  Ne4 {[%clk 0:02:38]} 18. Qe3 {[%clk 0:02:58]}  Nd6 {[%clk 0:02:31]} 19. Qd3 {[%clk 0:02:51]}  Nc4 {[%clk 0:02:24]} 20. Re2 {[%clk 0:02:49]}  Qc8 {[%clk 0:02:01]} 21. Qc2 {[%clk 0:02:32]}  Nd6 {[%clk 0:01:56]} 22. h4 {[%clk 0:02:31]}  Ne4 {[%clk 0:01:41]} 23. h5 {[%clk 0:02:31]}  Nxe5 {[%clk 0:01:41]} 24. Nxe5 {[%clk 0:02:28]}  Ba6 {[%clk 0:01:38]} 25. Re3 {[%clk 0:02:27]}  f5 {[%clk 0:01:36]} 26. Kg2 {[%clk 0:02:22]}  Bb7 {[%clk 0:01:33]} 27. Rd4 {[%clk 0:02:20]}  Nf6 {[%clk 0:01:31]} 28. Qd1 {[%clk 0:02:21]}  Re7 {[%clk 0:01:30]} 29. Bc2 {[%clk 0:02:21]}  Qe8 {[%clk 0:01:30]} 30. h6 {[%clk 0:02:07]}  gxh6 {[%clk 0:01:29]} 31. Re1 {[%clk 0:01:58]}  h5 {[%clk 0:01:26]} 32. Rh1 {[%clk 0:01:58]}  Rg7 {[%clk 0:01:24]} 33. Qe2 {[%clk 0:01:55]}  Bc8 {[%clk 0:01:18]} 34. Bd3 {[%clk 0:01:54]}  Ng4 {[%clk 0:01:14]} 35. Nf3 {[%clk 0:01:52]}  Qg6 {[%clk 0:00:58]} 36. a4 {[%clk 0:01:38]}  Bd7 {[%clk 0:00:58]} 37. Bb5 {[%clk 0:01:34]}  Bxb5 {[%clk 0:00:53]} 38. axb5 {[%clk 0:01:35]}  Re8 {[%clk 0:00:51]} 39. Ra4 {[%clk 0:01:34]}  Rge7 {[%clk 0:00:33]} 40. Ne5 {[%clk 0:01:33]}  Nxe5 {[%clk 0:00:33]} 41. Qxe5 {[%clk 0:01:34]}  Rg7 {[%clk 0:00:29]} 42. Raa1 {[%clk 0:01:23]}  Qh6 {[%clk 0:00:26]} 43. Kf1 {[%clk 0:01:16]}  Rf7 {[%clk 0:00:21]} 44. Re1 {[%clk 0:01:10]}  Qg7 {[%clk 0:00:20]} 45. Rxh5 {[%clk 0:01:06]}  Qxe5 {[%clk 0:00:20]} 46. Rxe5 {[%clk 0:01:07]}  Kf8 {[%clk 0:00:18]} 47. Rh6 {[%clk 0:01:07]}  Ke7 {[%clk 0:00:17]} 48. Rhxe6+ {[%clk 0:01:06]} 1-0


[Site "https://www.chess.com"]

[Event "Titled Tuesday Blitz July 25 Early 2023"]
[White "Lenaerts, Lennert"]
[Black "Putnam, Liam"]
[WhiteFideId "211435"]
[BlackFideId "30938279"]
[WhiteElo "2626"]
[BlackElo "2807"]
[Result "1-0"]
[Round "6"]
[TimeControl "180+2"]
[Date "2023.07.25"]
[WhiteClock "0:00:13"]
[BlackClock "0:00:03"]
[Board "44"]

1. d4 {[%clk 0:03:00]}  Nf6 {[%clk 0:02:54]} 2. c4 {[%clk 0:03:01]}  d6 {[%clk 0:02:46]} 3. Nc3 {[%clk 0:03:00]}  Nbd7 {[%clk 0:02:45]} 4. e4 {[%clk 0:02:59]}  e5 {[%clk 0:02:45]} 5. Nf3 {[%clk 0:02:59]}  Be7 {[%clk 0:02:44]} 6. g3 {[%clk 0:02:57]}  exd4 {[%clk 0:02:42]} 7. Nxd4 {[%clk 0:02:57]}  Ne5 {[%clk 0:02:42]} 8. Be2 {[%clk 0:02:50]}  Bh3 {[%clk 0:02:36]} 9. f4 {[%clk 0:02:46]}  Nc6 {[%clk 0:02:32]} 10. Nxc6 {[%clk 0:02:43]}  bxc6 {[%clk 0:02:33]} 11. Bf1 {[%clk 0:02:41]}  Bg4 {[%clk 0:02:30]} 12. Be2 {[%clk 0:02:42]}  Bh3 {[%clk 0:02:31]} 13. Bf1 {[%clk 0:02:42]}  Qd7 {[%clk 0:02:10]} 14. Bxh3 {[%clk 0:02:23]}  Qxh3 {[%clk 0:02:11]} 15. Qf3 {[%clk 0:02:23]}  h5 {[%clk 0:02:11]} 16. Be3 {[%clk 0:02:18]}  Ng4 {[%clk 0:01:56]} 17. O-O-O {[%clk 0:02:17]}  O-O {[%clk 0:01:50]} 18. Ne2 {[%clk 0:02:11]}  Nxe3 {[%clk 0:01:49]} 19. Qxe3 {[%clk 0:02:12]}  Bf6 {[%clk 0:01:48]} 20. Nd4 {[%clk 0:02:04]}  c5 {[%clk 0:01:31]} 21. Nb5 {[%clk 0:01:55]}  Rab8 {[%clk 0:01:28]} 22. b3 {[%clk 0:01:53]}  Rb7 {[%clk 0:01:21]} 23. e5 {[%clk 0:01:47]}  dxe5 {[%clk 0:01:04]} 24. fxe5 {[%clk 0:01:48]}  Re8 {[%clk 0:01:04]} 25. Qf3 {[%clk 0:01:47]}  Bg5+ {[%clk 0:00:55]} 26. Kb1 {[%clk 0:01:41]}  Rb6 {[%clk 0:00:50]} 27. Rhe1 {[%clk 0:01:14]}  Re7 {[%clk 0:00:37]} 28. Rd8+ {[%clk 0:01:11]}  Kh7 {[%clk 0:00:37]} 29. Qe4+ {[%clk 0:01:03]}  f5 {[%clk 0:00:20]} 30. Qa8 {[%clk 0:00:58]}  Qxh2 {[%clk 0:00:17]} 31. Rh8+ {[%clk 0:00:47]}  Kg6 {[%clk 0:00:17]} 32. Qg8 {[%clk 0:00:48]}  Qd2 {[%clk 0:00:08]} 33. Qh7+ {[%clk 0:00:40]}  Kf7 {[%clk 0:00:09]} 34. Qxh5+ {[%clk 0:00:31]}  Ke6 {[%clk 0:00:09]} 35. Rd1 {[%clk 0:00:30]}  Qe3 {[%clk 0:00:05]} 36. Nxc7+ {[%clk 0:00:19]}  Kxe5 {[%clk 0:00:01]} 37. Nd5 {[%clk 0:00:18]}  Ke4 {[%clk 0:00:02]} 38. Nxe3 {[%clk 0:00:18]}  Bxe3 {[%clk 0:00:03]} 39. Rf8 {[%clk 0:00:13]}  Rf6 {[%clk 0:00:02]} 40. Rxf6 {[%clk 0:00:13]}  gxf6 {[%clk 0:00:03]} 41. Rf1 {[%clk 0:00:12]}  Kd4 {[%clk 0:00:02]} 42. Qxf5 {[%clk 0:00:12]}  Kc3 {[%clk 0:00:03]} 43. Qc2+ {[%clk 0:00:11]}  Kb4 {[%clk 0:00:03]} 44. Re1 {[%clk 0:00:12]}  Re5 {[%clk 0:00:03]} 45. Rxe3 {[%clk 0:00:12]}  Rxe3 {[%clk 0:00:03]} 46. Qd2+ {[%clk 0:00:12]}  Rc3 {[%clk 0:00:04]} 47. Kb2 {[%clk 0:00:12]}  f5 {[%clk 0:00:03]} 48. Qxc3# {[%clk 0:00:13]} 1-0


[Site "https://www.chess.com"]

[Event "Titled Tuesday Blitz July 25 Early 2023"]
[White "Attacker_2006"]
[Black "Morefield, Jason"]
[BlackFideId "30920825"]
[WhiteElo "2419"]
[BlackElo "2744"]
[Result "0-1"]
[Round "6"]
[TimeControl "180+2"]
[Date "2023.07.25"]
[WhiteClock "0:00:00"]
[BlackClock "0:00:41"]
[Board "51"]

1. e4 {[%clk 0:02:54]}  d6 {[%clk 0:02:57]} 2. d4 {[%clk 0:02:54]}  Nf6 {[%clk 0:02:54]} 3. Nc3 {[%clk 0:02:54]}  g6 {[%clk 0:02:54]} 4. f4 {[%clk 0:02:51]}  Bg7 {[%clk 0:02:54]} 5. Nf3 {[%clk 0:02:51]}  c5 {[%clk 0:02:55]} 6. dxc5 {[%clk 0:02:46]}  Qa5 {[%clk 0:02:54]} 7. Bd3 {[%clk 0:02:45]}  Qxc5 {[%clk 0:02:54]} 8. Qe2 {[%clk 0:02:45]}  O-O {[%clk 0:02:55]} 9. Be3 {[%clk 0:02:44]}  Qa5 {[%clk 0:02:56]} 10. O-O {[%clk 0:02:44]}  Bg4 {[%clk 0:02:55]} 11. h3 {[%clk 0:02:44]}  Bxf3 {[%clk 0:02:55]} 12. Rxf3 {[%clk 0:02:44]}  Nc6 {[%clk 0:02:56]} 13. Raf1 {[%clk 0:02:45]}  a6 {[%clk 0:02:53]} 14. a3 {[%clk 0:02:36]}  b5 {[%clk 0:02:49]} 15. Qf2 {[%clk 0:02:35]}  Rab8 {[%clk 0:02:42]} 16. g4 {[%clk 0:02:31]}  b4 {[%clk 0:02:39]} 17. axb4 {[%clk 0:02:30]}  Qxb4 {[%clk 0:02:38]} 18. g5 {[%clk 0:02:28]}  Nd7 {[%clk 0:02:37]} 19. Nd5 {[%clk 0:02:26]}  Qxb2 {[%clk 0:02:36]} 20. f5 {[%clk 0:02:17]}  e6 {[%clk 0:02:10]} 21. f6 {[%clk 0:02:00]}  exd5 {[%clk 0:02:07]} 22. fxg7 {[%clk 0:02:01]}  Qxg7 {[%clk 0:02:07]} 23. exd5 {[%clk 0:02:02]}  Nce5 {[%clk 0:02:07]} 24. Rf6 {[%clk 0:01:58]}  Nxd3 {[%clk 0:01:58]} 25. cxd3 {[%clk 0:01:54]}  Ne5 {[%clk 0:01:34]} 26. Bd4 {[%clk 0:01:42]}  Rbd8 {[%clk 0:01:22]} 27. Qg3 {[%clk 0:01:36]}  Rfe8 {[%clk 0:01:12]} 28. Re1 {[%clk 0:00:58]}  Nf3+ {[%clk 0:01:03]} 29. Qxf3 {[%clk 0:00:46]}  Rxe1+ {[%clk 0:00:57]} 30. Kg2 {[%clk 0:00:31]}  Rde8 {[%clk 0:00:52]} 31. Rf4 {[%clk 0:00:15]}  R8e2+ {[%clk 0:00:50]} 32. Kg3 {[%clk 0:00:15]}  Qf8 {[%clk 0:00:49]} 33. h4 {[%clk 0:00:04]}  Qe7 {[%clk 0:00:45]} 34. h5 {[%clk 0:00:01]}  Re3 {[%clk 0:00:41]} 35. Bxe3 {[%clk 0:00:01]}  Rxe3 {[%clk 0:00:42]} 36. h6 {[%clk 0:00:00]}  Qxg5+ {[%clk 0:00:41]} 0-1


[Site "https://www.chess.com"]